[Event "DVM U10 2024"]
[Site "Duesseldorf"]
[Date "2024.12.28"]
[Round "4"]
[White "Roessling, Johannes"]
[Black "Schmidt, Jan"]
[Result "1-0"]
[ECO "B13"]
[WhiteElo "1618"]
[BlackElo "1688"]
[Annotator "NA RC"]
[PlyCount "45"]
[EventDate "2024.12.23"]
[EventType "team-tourn"]
[EventRounds "7"]
[EventCountry "GER"]
[SourceTitle "playchess.com"]
[Source "ChessBase"]
[SourceQuality "1"]
[TimeControl "3300+5"]

1. e4 {[%emt 0:00:01]} c6 {[%emt 0:00:04]} 2. d4 {[%emt 0:00:11]} d5 {[%emt 0:00:06]} 3. exd5 {[%emt 0:00:14]} cxd5 {[%emt 0:00:08]} 4. c4 {[%emt 0:00:08]} Nf6 {[%emt 0:01:05]} 5. Nc3 {[%emt 0:00:28]} Nc6 {[%emt 0:01:09]} 6. Nf3 {[%emt 0:02:02]} Bg4 {[%emt 0:00:37]} 7. Be3 {[%emt 0:15:01]} e6 {[%emt 0:03:01]} 8. c5 {[%emt 0:05:09]} Bxf3 {[%emt 0:03:30]} 9. Qxf3 {[%emt 0:00:43]} Be7 {[%emt 0:00:37]} 10. a3 {[%emt 0:01:21]} a5 {[%emt 0:00:20]} 11. Bd3 {[%emt 0:00:36]} Bxc5 {[%emt 0:02:00]} 12. dxc5 {[%emt 0:04:36]} d4 {[%emt 0:00:27]} 13. Bd2 {[%emt 0:01:56]} Ne5 {[%emt 0:03:46]} 14. Bb5+ {[%emt 0:00:58]} Nfd7 {[%emt 0:03:16]} 15. Qg3 {[%emt 0:02:12]} dxc3 {[%emt 0:03:50]} 16. Bxc3 {[%emt 0:00:09]} Ng6 {[%emt 0:01:58]} 17. Bxg7 {[%emt 0:01:47]} Rg8 {[%emt 0:00:08]} 18. Bc3 {[%emt 0:01:06]} h5 {[%emt 0:01:39]} 19. Qd6 {[%emt 0:01:56]} Ngf8 {[%emt 0:01:15]} 20. g3 {[%emt 0:03:18]} Rg5 {[%emt 0:01:35]} 21. Rd1 {[%emt 0:01:40]} Qc8 {[%emt 0:01:12]} 22. Bf6 {[%emt 0:01:15]} Qxc5 {[%emt 0:02:55]} 23. Bxd7+ {[%emt 0:00:07]} 1-0

[Event "DVM U10 2024"]
[Site "Duesseldorf"]
[Date "2024.12.28"]
[Round "4"]
[White "Thirumal, Shravan"]
[Black "Jiang, Alexander D"]
[Result "0-1"]
[ECO "C01"]
[WhiteElo "1614"]
[BlackElo "1958"]
[Annotator "NA RC"]
[PlyCount "52"]
[EventDate "2024.12.23"]
[EventType "team-tourn"]
[EventRounds "7"]
[EventCountry "GER"]
[SourceTitle "playchess.com"]
[Source "ChessBase"]
[SourceQuality "1"]
[TimeControl "3300+5"]

1. e4 {[%emt 0:00:23]} e6 {[%emt 0:00:08]} 2. Nf3 {[%emt 0:00:29]} d5 {[%emt 0:00:11]} 3. exd5 {[%emt 0:01:46]} exd5 {[%emt 0:00:42]} 4. d4 {[%emt 0:00:45]} Nf6 {[%emt 0:01:02]} 5. Nc3 {[%emt 0:02:06]} Bb4 {[%emt 0:00:38]} 6. a3 {[%emt 0:00:57]} Bxc3+ {[%emt 0:01:46]} 7. bxc3 {[%emt 0:00:30]} Ne4 {[%emt 0:01:25]} 8. c4 {[%emt 0:02:39]} Qe7 {[%emt 0:01:24]} 9. Be3 {[%emt 0:05:08]} c6 {[%emt 0:02:04]} 10. Bd3 {[%emt 0:00:40]} Bg4 {[%emt 0:01:38]} 11. O-O {[%emt 0:00:51]} O-O {[%emt 0:00:41]} 12. h3 {[%emt 0:01:18]} Bh5 {[%emt 0:01:28]} 13. Re1 {[%emt 0:01:47]} Qf6 {[%emt 0:03:05]} 14. Rb1 {[%emt 0:01:01]} Nc3 {[%emt 0:01:22]} 15. Bxh7+ {[%emt 0:01:21]} Kxh7 {[%emt 0:01:31]} 16. Ng5+ {[%emt 0:02:09]} Qxg5 {[%emt 0:07:57]} 17. Qd3+ {[%emt 0:05:05]} Qg6 {[%emt 0:00:45]} 18. Qxc3 {[%emt 0:00:48]} Bf3 {[%emt 0:00:37]} 19. g3 {[%emt 0:00:48]} Qh5 {[%emt 0:02:35]} 20. Kh2 {[%emt 0:06:53]} Nd7 {[%emt 0:01:44]} 21. Rxb7 {[%emt 0:00:58]} Nf6 {[%emt 0:01:24]} 22. Qd3+ {[%emt 0:02:25]} Be4 {[%emt 0:00:32]} 23. Qf1 {[%emt 0:00:48]} Qf3 {[%emt 0:03:48]} 24. Rb3 {[%emt 0:01:43]} dxc4 {[%emt 0:01:32]} 25. Rc3 {[%emt 0:03:11]} Rh8 {[%emt 0:01:33]} 26. Bd2 {[%emt 0:01:22]} Ng4+ {[%emt 0:01:45]} 0-1

[Event "DVM U10 2024"]
[Site "Duesseldorf"]
[Date "2024.12.28"]
[Round "4"]
[White "Ni, Wilhelm Zeyin"]
[Black "El-Issa, Erik"]
[Result "0-1"]
[ECO "B15"]
[WhiteElo "1611"]
[BlackElo "1530"]
[Annotator "NA"]
[PlyCount "84"]
[EventDate "2024.12.23"]
[EventType "team-tourn"]
[EventRounds "7"]
[EventCountry "GER"]
[SourceTitle "playchess.com"]
[Source "ChessBase"]
[SourceQuality "1"]
[TimeControl "3300+5"]

1. e4 {[%emt 0:00:05]} c6 {[%emt 0:00:04]} 2. Nf3 {[%emt 0:00:08]} d5 {[%emt 0:00:13]} 3. Nc3 {[%emt 0:00:05]} g6 {[%emt 0:00:52]} 4. d4 {[%emt 0:01:08]} Bg7 {[%emt 0:00:20]} 5. Be2 {[%emt 0:01:14]} Bg4 {[%emt 0:00:28]} 6. Be3 {[%emt 0:00:42]} e6 {[%emt 0:00:34]} 7. h3 {[%emt 0:00:36]} Bxf3 {[%emt 0:00:07]} 8. Bxf3 {[%emt 0:00:06]} Ne7 {[%emt 0:00:21]} 9. O-O {[%emt 0:00:30]} O-O {[%emt 0:00:10]} 10. Qd2 {[%emt 0:00:54]} Nd7 {[%emt 0:00:49]} 11. Rad1 {[%emt 0:00:48]} Nb6 {[%emt 0:02:31]} 12. b3 {[%emt 0:01:30]} Nd7 {[%emt 0:02:28]} 13. Rfe1 {[%emt 0:10:44]} Rc8 {[%emt 0:02:08]} 14. Na4 {[%emt 0:01:56]} b6 {[%emt 0:00:53]} 15. c4 {[%emt 0:01:54]} Nf6 {[%emt 0:03:22]} 16. e5 {[%emt 0:06:12]} Nd7 {[%emt 0:02:21]} 17. Nc3 {[%emt 0:03:15]} Nf5 {[%emt 0:02:26]} 18. Bg5 {[%emt 0:01:53]} Qe8 {[%emt 0:05:42]} 19. g3 {[%emt 0:08:13]} h6 {[%emt 0:01:04]} 20. Be3 {[%emt 0:00:34]} f6 {[%emt 0:02:15]} 21. g4 {[%emt 0:02:53]} Nxe3 {[%emt 0:00:32]} 22. Qxe3 {[%emt 0:00:58]} fxe5 {[%emt 0:00:34]} 23. dxe5 {[%emt 0:01:04]} Nxe5 {[%emt 0:00:32]} 24. Bg2 {[%emt 0:00:29]} Qf7 {[%emt 0:01:59]} 25. Ne2 {[%emt 0:02:07]} g5 {[%emt 0:01:50]} 26. Ng3 {[%emt 0:01:09]} Rce8 {[%emt 0:01:23]} 27. Nh5 {[%emt 0:00:37]} Nf3+ {[%emt 0:01:14]} 28. Bxf3 {[%emt 0:00:13]} Qxf3 {[%emt 0:00:12]} 29. Qxf3 {[%emt 0:00:26]} Rxf3 {[%emt 0:00:10]} 30. Nxg7 {[%emt 0:01:07]} Kxg7 {[%emt 0:00:14]} 31. Kg2 {[%emt 0:00:20]} Rf7 {[%emt 0:00:32]} 32. cxd5 {[%emt 0:00:24]} cxd5 {[%emt 0:00:40]} 33. Rxd5 {[%emt 0:00:14]} Rfe7 {[%emt 0:00:36]} 34. Rde5 {[%emt 0:00:48]} Kf6 {[%emt 0:00:31]} 35. R5e4 {[%emt 0:00:55]} e5 {[%emt 0:00:58]} 36. Rc1 {[%emt 0:00:22]} Rd8 {[%emt 0:01:25]} 37. Rc6+ {[%emt 0:00:22]} Re6 {[%emt 0:01:11]} 38. Rc7 {[%emt 0:00:08]} a5 {[%emt 0:00:07]} 39. Rc2 {[%emt 0:00:08]} Rd4 {[%emt 0:02:39]} 40. Ree2 {[%emt 0:00:17]} e4 {[%emt 0:00:35]} 41. Re3 {[%emt 0:00:31]} Rd3 {[%emt 0:01:10]} 42. Rce2 {[%emt 0:00:28]} Rxe3 {[%emt 0:00:28]} 0-1

[Event "DVM U10 2024"]
[Site "Duesseldorf"]
[Date "2024.12.28"]
[Round "4"]
[White "Riazi, Dominik"]
[Black "Wittenberger, Henri"]
[Result "1-0"]
[ECO "B52"]
[WhiteElo "1602"]
[BlackElo "1421"]
[Annotator "NA"]
[PlyCount "61"]
[EventDate "2024.12.23"]
[EventType "team-tourn"]
[EventRounds "7"]
[EventCountry "GER"]
[SourceTitle "playchess.com"]
[Source "ChessBase"]
[SourceQuality "1"]
[TimeControl "3300+5"]

1. e4 {[%emt 0:00:05]} c5 {[%emt 0:00:09]} 2. Nf3 {[%emt 0:00:03]} d6 {[%emt 0:00:09]} 3. Bb5+ {[%emt 0:00:50]} Bd7 {[%emt 0:00:58]} 4. c4 {[%emt 0:00:00]} Nf6 {[%emt 0:02:52]} 5. Nc3 {[%emt 0:01:29]} a6 {[%emt 0:00:04]} 6. Bxd7+ {[%emt 0:00:00]} Nbxd7 {[%emt 0:00:41]} 7. d3 {[%emt 0:01:56]} g6 {[%emt 0:01:41]} 8. O-O {[%emt 0:02:04]} Bg7 {[%emt 0:00:52]} 9. h3 {[%emt 0:01:09]} O-O {[%emt 0:00:05]} 10. Be3 {[%emt 0:00:05]} Rc8 {[%emt 0:00:05]} 11. a4 {[%emt 0:00:05]} Re8 {[%emt 0:00:05]} 12. Rb1 {[%emt 0:00:05]} e6 {[%emt 0:00:05]} 13. b4 {[%emt 0:00:05]} cxb4 {[%emt 0:00:05]} 14. Rxb4 {[%emt 0:00:05]} Qa5 {[%emt 0:00:05]} 15. Qb3 {[%emt 0:00:05]} d5 {[%emt 0:00:05]} 16. Rxb7 {[%emt 0:00:05]} Rb8 {[%emt 0:00:05]} 17. Rxb8 {[%emt 0:00:05]} Rxb8 {[%emt 0:00:05]} 18. Qc2 {[%emt 0:00:05]} Ne8 {[%emt 0:00:05]} 19. Bd2 {[%emt 0:00:05]} dxc4 {[%emt 0:00:05]} 20. dxc4 {[%emt 0:00:05]} Qc5 {[%emt 0:00:05]} 21. Rb1 {[%emt 0:00:05]} Qxc4 {[%emt 0:00:05]} 22. Rxb8 {[%emt 0:00:05]} Nxb8 {[%emt 0:00:05]} 23. a5 {[%emt 0:00:05]} Nc6 {[%emt 0:00:05]} 24. Qa4 {[%emt 0:00:05]} Qxa4 {[%emt 0:00:05]} 25. Nxa4 {[%emt 0:00:05]} Nd6 {[%emt 0:00:05]} 26. Nc5 {[%emt 0:00:05]} Nc4 {[%emt 0:00:05]} 27. Be1 {[%emt 0:00:05]} N6xa5 {[%emt 0:00:05]} 28. Nxa6 {[%emt 0:00:05]} Nc6 {[%emt 0:00:05]} 29. Nb4 {[%emt 0:00:05]} Nxb4 {[%emt 0:00:05]} 30. Bxb4 {[%emt 0:00:05]} Bf8 {[%emt 0:00:05]} 31. Bc3 {[%emt 0:00:05]} 1-0

[Event "DVM U10 2024"]
[Site "Duesseldorf"]
[Date "2024.12.28"]
[Round "4"]
[White "von Flottwell, Lionel"]
[Black "Dombert, Johannes"]
[Result "1-0"]
[ECO "A45"]
[WhiteElo "1597"]
[BlackElo "1611"]
[Annotator "NA"]
[PlyCount "97"]
[EventDate "2024.12.23"]
[EventType "team-tourn"]
[EventRounds "7"]
[EventCountry "GER"]
[SourceTitle "playchess.com"]
[Source "ChessBase"]
[SourceQuality "1"]
[TimeControl "3300+5"]

1. d4 {[%emt 0:00:05]} Nf6 {[%emt 0:00:06]} 2. Bg5 {[%emt 0:00:08]} e6 {[%emt 0:00:18]} 3. e4 {[%emt 0:00:14]} h6 {[%emt 0:00:33]} 4. Bxf6 {[%emt 0:00:18]} Qxf6 {[%emt 0:00:06]} 5. c3 {[%emt 0:00:58]} c5 {[%emt 0:02:26]} 6. a3 {[%emt 0:01:06]} Nc6 {[%emt 0:00:52]} 7. Nf3 {[%emt 0:04:34]} Be7 {[%emt 0:07:03]} 8. h3 {[%emt 0:03:28]} d6 {[%emt 0:04:59]} 9. d5 {[%emt 0:07:03]} Ne5 {[%emt 0:03:05]} 10. Nxe5 {[%emt 0:01:15]} Qxe5 {[%emt 0:02:59]} 11. Bb5+ {[%emt 0:01:08]} Bd7 {[%emt 0:00:30]} 12. Bxd7+ {[%emt 0:00:37]} Kxd7 {[%emt 0:00:04]} 13. dxe6+ {[%emt 0:15:41]} fxe6 {[%emt 0:00:10]} 14. Qa4+ {[%emt 0:00:27]} Kc7 {[%emt 0:00:17]} 15. O-O {[%emt 0:01:47]} Rhf8 {[%emt 0:01:59]} 16. c4 {[%emt 0:08:21]} Qxb2 {[%emt 0:02:17]} 17. Qa5+ {[%emt 0:00:38]} b6 {[%emt 0:00:14]} 18. Qc3 {[%emt 0:00:09]} Bf6 {[%emt 0:01:23]} 19. Qxb2 {[%emt 0:00:28]} Bxb2 {[%emt 0:00:20]} 20. Ra2 {[%emt 0:00:08]} Bd4 {[%emt 0:00:22]} 21. a4 {[%emt 0:00:23]} g5 {[%emt 0:02:02]} 22. a5 {[%emt 0:00:37]} h5 {[%emt 0:02:35]} 23. a6 {[%emt 0:00:46]} g4 {[%emt 0:00:32]} 24. hxg4 {[%emt 0:00:51]} hxg4 {[%emt 0:00:06]} 25. g3 {[%emt 0:00:30]} Rf7 {[%emt 0:00:56]} 26. Na3 {[%emt 0:00:43]} Rh8 {[%emt 0:00:38]} 27. Nb5+ {[%emt 0:00:29]} Kc6 {[%emt 0:00:06]} 28. Kg2 {[%emt 0:02:05]} Rfh7 {[%emt 0:00:17]} 29. Rg1 {[%emt 0:00:09]} Rh2+ {[%emt 0:02:49]} 30. Kf1 {[%emt 0:00:03]} Rf8 {[%emt 0:00:24]} 31. Nxa7+ {[%emt 0:00:18]} Kd7 {[%emt 0:00:31]} 32. Rg2 {[%emt 0:00:09]} Rh1+ {[%emt 0:00:59]} 33. Rg1 {[%emt 0:00:17]} Rh2 {[%emt 0:00:36]} 34. Rg2 {[%emt 0:00:13]} Rh1+ {[%emt 0:00:05]} 35. Ke2 {[%emt 0:00:11]} Ra1 {[%emt 0:01:24]} 36. Rxa1 {[%emt 0:00:02]} Bxa1 {[%emt 0:00:07]} 37. Nb5 {[%emt 0:00:14]} d5 {[%emt 0:01:44]} 38. exd5 {[%emt 0:00:13]} exd5 {[%emt 0:00:05]} 39. cxd5 {[%emt 0:00:05]} Re8+ {[%emt 0:00:11]} 40. Kd2 {[%emt 0:00:05]} Ra8 {[%emt 0:02:15]} 41. a7 {[%emt 0:00:03]} Be5 {[%emt 0:00:51]} 42. Rh2 {[%emt 0:00:07]} Ke7 {[%emt 0:00:45]} 43. Rh4 {[%emt 0:00:08]} Rd8 {[%emt 0:00:50]} 44. Kc2 {[%emt 0:00:41]} Rf8 {[%emt 0:00:14]} 45. Kb3 {[%emt 0:00:09]} Rf3+ {[%emt 0:00:14]} 46. Kc4 {[%emt 0:00:05]} Rf8 {[%emt 0:00:43]} 47. Rxg4 {[%emt 0:00:01]} Kd7 {[%emt 0:00:34]} 48. f4 {[%emt 0:00:01]} Bh8 {[%emt 0:00:12]} 49. Rg6 {[%emt 0:02:45]} 1-0

[Event "DVM U10 2024"]
[Site "Duesseldorf"]
[Date "2024.12.28"]
[Round "4"]
[White "Marx, Jakob"]
[Black "Frikel, Konstantin"]
[Result "1-0"]
[ECO "C56"]
[WhiteElo "1591"]
[BlackElo "1199"]
[Annotator "NA"]
[PlyCount "91"]
[EventDate "2024.12.23"]
[EventType "team-tourn"]
[EventRounds "7"]
[EventCountry "GER"]
[SourceTitle "playchess.com"]
[Source "ChessBase"]
[SourceQuality "1"]
[TimeControl "3300+5"]

1. e4 {[%emt 0:00:01]} e5 {[%emt 0:00:08]} 2. Bc4 {[%emt 0:00:05]} Nf6 {[%emt 0:00:14]} 3. d4 {[%emt 0:00:07]} exd4 {[%emt 0:00:38]} 4. Nf3 {[%emt 0:00:06]} Nc6 {[%emt 0:02:44]} 5. O-O {[%emt 0:00:08]} d5 {[%emt 0:01:30]} 6. exd5 {[%emt 0:00:22]} Nxd5 {[%emt 0:00:28]} 7. Re1+ {[%emt 0:01:24]} Be6 {[%emt 0:00:23]} 8. Nxd4 {[%emt 0:00:23]} Nxd4 {[%emt 0:01:10]} 9. Qxd4 {[%emt 0:00:05]} Be7 {[%emt 0:00:23]} 10. Bxd5 {[%emt 0:00:59]} Qxd5 {[%emt 0:00:30]} 11. Qxg7 {[%emt 0:00:07]} O-O-O {[%emt 0:00:42]} 12. Nc3 {[%emt 0:00:20]} Qc6 {[%emt 0:00:24]} 13. Qe5 {[%emt 0:01:33]} Rhg8 {[%emt 0:00:45]} 14. Qe4 {[%emt 0:00:12]} Qxe4 {[%emt 0:03:50]} 15. Nxe4 {[%emt 0:00:08]} Kb8 {[%emt 0:07:32]} 16. Bf4 {[%emt 0:01:27]} Bd5 {[%emt 0:01:45]} 17. Ng3 {[%emt 0:00:21]} Bc6 {[%emt 0:00:37]} 18. Rxe7 {[%emt 0:00:17]} Rgf8 {[%emt 0:01:01]} 19. Bxc7+ {[%emt 0:00:16]} Ka8 {[%emt 0:00:31]} 20. Bxd8 {[%emt 0:00:11]} Rxd8 {[%emt 0:00:10]} 21. Rae1 {[%emt 0:00:16]} a6 {[%emt 0:01:10]} 22. Rxf7 {[%emt 0:00:07]} h6 {[%emt 0:01:51]} 23. Rh7 {[%emt 0:00:16]} Rd6 {[%emt 0:00:16]} 24. Nf5 {[%emt 0:00:28]} Rg6 {[%emt 0:00:27]} 25. g3 {[%emt 0:00:06]} Rg5 {[%emt 0:05:04]} 26. Re5 {[%emt 0:00:56]} Bf3 {[%emt 0:00:50]} 27. Rxh6 {[%emt 0:00:45]} Rg4 {[%emt 0:03:34]} 28. Rh4 {[%emt 0:00:14]} Rg5 {[%emt 0:00:11]} 29. Re8+ {[%emt 0:00:15]} Ka7 {[%emt 0:00:46]} 30. Nd4 {[%emt 0:00:34]} Bd5 {[%emt 0:01:19]} 31. f4 {[%emt 0:00:00]} Rg7 {[%emt 0:00:47]} 32. Rhh8 {[%emt 0:00:38]} Rd7 {[%emt 0:01:06]} 33. b4 {[%emt 0:00:20]} Bxa2 {[%emt 0:00:25]} 34. Ra8+ {[%emt 0:00:08]} Kb6 {[%emt 0:00:27]} 35. Rh6+ {[%emt 0:00:22]} Kc7 {[%emt 0:00:26]} 36. Ne6+ {[%emt 0:00:51]} Bxe6 {[%emt 0:00:28]} 37. Rxe6 {[%emt 0:00:12]} Rd1+ {[%emt 0:00:14]} 38. Kf2 {[%emt 0:00:02]} Rd2+ {[%emt 0:00:17]} 39. Re2 {[%emt 0:00:06]} Rd4 {[%emt 0:00:55]} 40. c3 {[%emt 0:00:11]} Rd3 {[%emt 0:00:51]} 41. Ree8 {[%emt 0:00:14]} Rd2+ {[%emt 0:01:01]} 42. Kg1 {[%emt 0:00:07]} Kb6 {[%emt 0:00:34]} 43. Re6+ {[%emt 0:00:27]} Kc7 {[%emt 0:00:18]} 44. f5 {[%emt 0:00:25]} Rd3 {[%emt 0:00:19]} 45. Re7+ {[%emt 0:00:43]} Kb6 {[%emt 0:00:27]} 46. f6 {[%emt 0:00:24]} 1-0

[Event "DVM U10 2024"]
[Site "Duesseldorf"]
[Date "2024.12.28"]
[Round "4"]
[White "Nikolic, Luka"]
[Black "Lüttgen, Jona"]
[Result "0-1"]
[ECO "A80"]
[WhiteElo "1579"]
[BlackElo "1412"]
[Annotator "NA"]
[PlyCount "122"]
[EventDate "2024.12.23"]
[EventType "team-tourn"]
[EventRounds "7"]
[EventCountry "GER"]
[SourceTitle "playchess.com"]
[Source "ChessBase"]
[SourceQuality "1"]
[TimeControl "3300+5"]

1. d4 {[%emt 0:00:01]} f5 {[%emt 0:00:05]} 2. Nc3 {[%emt 0:00:06]} Nf6 {[%emt 0:00:11]} 3. Bg5 {[%emt 0:00:05]} e6 {[%emt 0:00:20]} 4. Nf3 {[%emt 0:00:11]} h6 {[%emt 0:00:11]} 5. Bxf6 {[%emt 0:00:21]} Qxf6 {[%emt 0:00:09]} 6. e3 {[%emt 0:00:23]} d5 {[%emt 0:00:15]} 7. Nb5 {[%emt 0:01:38]} Na6 {[%emt 0:00:35]} 8. Nc3 {[%emt 0:00:11]} Bd7 {[%emt 0:00:51]} 9. Bxa6 {[%emt 0:00:17]} bxa6 {[%emt 0:00:12]} 10. Qe2 {[%emt 0:00:18]} Rb8 {[%emt 0:01:21]} 11. b3 {[%emt 0:02:09]} Bb4 {[%emt 0:00:29]} 12. Qd3 {[%emt 0:00:47]} Bb5 {[%emt 0:00:25]} 13. Qd2 {[%emt 0:00:46]} c5 {[%emt 0:02:15]} 14. a3 {[%emt 0:02:35]} Ba5 {[%emt 0:01:03]} 15. Rb1 {[%emt 0:01:19]} O-O {[%emt 0:05:18]} 16. b4 {[%emt 0:02:21]} cxb4 {[%emt 0:00:35]} 17. axb4 {[%emt 0:00:21]} Bc7 {[%emt 0:00:12]} 18. Ra1 {[%emt 0:02:00]} Bc4 {[%emt 0:00:51]} 19. Na4 {[%emt 0:01:36]} Rfc8 {[%emt 0:01:53]} 20. Nc5 {[%emt 0:00:50]} Bd6 {[%emt 0:01:03]} 21. Nd7 {[%emt 0:03:17]} Qg6 {[%emt 0:05:06]} 22. Nxb8 {[%emt 0:00:39]} Qxg2 {[%emt 0:01:44]} 23. Rg1 {[%emt 0:02:14]} Qxf3 {[%emt 0:00:10]} 24. Nd7 {[%emt 0:01:40]} Bxh2 {[%emt 0:00:45]} 25. Ne5 {[%emt 0:01:09]} Qe4 {[%emt 0:02:06]} 26. f3 {[%emt 0:04:16]} Qh4+ {[%emt 0:00:07]} 27. Qf2 {[%emt 0:00:09]} Qxf2+ {[%emt 0:00:13]} 28. Kxf2 {[%emt 0:00:10]} Bxg1+ {[%emt 0:00:32]} 29. Kxg1 {[%emt 0:00:05]} Bb5 {[%emt 0:01:21]} 30. Rc1 {[%emt 0:01:21]} Rc3 {[%emt 0:00:49]} 31. Kf2 {[%emt 0:00:42]} Ba4 {[%emt 0:00:31]} 32. Ke2 {[%emt 0:00:39]} Rxc2+ {[%emt 0:00:35]} 33. Rxc2 {[%emt 0:00:27]} Bxc2 {[%emt 0:00:06]} 34. Ng6 {[%emt 0:00:26]} Ba4 {[%emt 0:02:11]} 35. Nf4 {[%emt 0:01:35]} Kf7 {[%emt 0:00:41]} 36. Kf2 {[%emt 0:00:33]} g5 {[%emt 0:01:12]} 37. Nh3 {[%emt 0:00:15]} Bd1 {[%emt 0:01:52]} 38. Ng1 {[%emt 0:00:45]} Kg6 {[%emt 0:00:56]} 39. Nh3 {[%emt 0:00:21]} Bxf3 {[%emt 0:00:58]} 40. Nxg5 {[%emt 0:00:32]} Kxg5 {[%emt 0:00:16]} 41. Kxf3 {[%emt 0:00:07]} h5 {[%emt 0:01:50]} 42. Kg3 {[%emt 0:01:26]} h4+ {[%emt 0:00:00]} 43. Kg2 {[%emt 0:00:30]} Kg4 {[%emt 0:00:00]} 44. Kf2 {[%emt 0:00:17]} h3 {[%emt 0:00:00]} 45. Kf1 {[%emt 0:00:06]} Kf3 {[%emt 0:00:00]} 46. e4 {[%emt 0:00:09]} Kxe4 {[%emt 0:00:00]} 47. b5 {[%emt 0:00:12]} axb5 {[%emt 0:00:03]} 48. Kf2 {[%emt 0:00:34]} Kxd4 {[%emt 0:00:05]} 49. Kg3 {[%emt 0:00:05]} a5 {[%emt 0:00:05]} 50. Kh4 {[%emt 0:00:05]} h2 {[%emt 0:00:11]} 51. Kg3 {[%emt 0:00:17]} h1=Q {[%emt 0:00:20]} 52. Kf4 {[%emt 0:00:14]} a4 {[%emt 0:00:31]} 53. Kg5 {[%emt 0:00:08]} a3 {[%emt 0:00:10]} 54. Kf6 {[%emt 0:00:05]} a2 {[%emt 0:00:40]} 55. Ke7 {[%emt 0:00:11]} a1=Q {[%emt 0:00:16]} 56. Kd6 {[%emt 0:00:04]} e5 {[%emt 0:00:56]} 57. Ke6 {[%emt 0:00:29]} f4 {[%emt 0:00:30]} 58. Kf5 {[%emt 0:00:07]} f3 {[%emt 0:00:33]} 59. Kg4 {[%emt 0:00:00]} f2 {[%emt 0:01:06]} 60. Kg5 {[%emt 0:00:32]} f1=Q {[%emt 0:00:23]} 61. Kg4 {[%emt 0:00:02]} Qf4# {[%emt 0:00:38]} 0-1

[Event "DVM U10 2024"]
[Site "Duesseldorf"]
[Date "2024.12.28"]
[Round "4"]
[White "Nune, Likhith Siddharth"]
[Black "Estrin, Boris"]
[Result "1-0"]
[ECO "B01"]
[WhiteElo "1533"]
[BlackElo "1338"]
[Annotator "NA"]
[PlyCount "77"]
[EventDate "2024.12.23"]
[EventType "team-tourn"]
[EventRounds "7"]
[EventCountry "GER"]
[SourceTitle "playchess.com"]
[Source "ChessBase"]
[SourceQuality "1"]
[TimeControl "3300+5"]

1. e4 {[%emt 0:00:01]} d5 {[%emt 0:00:06]} 2. exd5 {[%emt 0:00:05]} Qxd5 {[%emt 0:00:06]} 3. Nc3 {[%emt 0:00:15]} Qa5 {[%emt 0:00:06]} 4. Nf3 {[%emt 0:00:10]} Bg4 {[%emt 0:00:08]} 5. Bc4 {[%emt 0:00:12]} Nf6 {[%emt 0:00:11]} 6. d3 {[%emt 0:00:19]} Nbd7 {[%emt 0:00:24]} 7. Bd2 {[%emt 0:00:22]} O-O-O {[%emt 0:00:43]} 8. h3 {[%emt 0:01:18]} Bh5 {[%emt 0:00:11]} 9. Nb5 {[%emt 0:03:44]} Qb6 {[%emt 0:00:39]} 10. a4 {[%emt 0:01:39]} a5 {[%emt 0:02:19]} 11. Be3 {[%emt 0:01:16]} Nc5 {[%emt 0:00:28]} 12. b4 {[%emt 0:00:22]} e5 {[%emt 0:00:54]} 13. bxc5 {[%emt 0:01:10]} Bxc5 {[%emt 0:00:11]} 14. Qc1 {[%emt 0:04:41]} Bd4 {[%emt 0:04:02]} 15. Rb1 {[%emt 0:01:00]} Qc5 {[%emt 0:03:01]} 16. Nfxd4 {[%emt 0:01:53]} exd4 {[%emt 0:00:48]} 17. Nxd4 {[%emt 0:01:01]} Rhe8 {[%emt 0:04:05]} 18. Ne6 {[%emt 0:01:46]} Qc6 {[%emt 0:03:20]} 19. Nxd8 {[%emt 0:02:05]} Qxg2 {[%emt 0:00:49]} 20. Rf1 {[%emt 0:06:11]} Rxd8 {[%emt 0:02:02]} 21. Bg5 {[%emt 0:04:38]} Re8+ {[%emt 0:01:46]} 22. Be3 {[%emt 0:00:39]} Qf3 {[%emt 0:00:53]} 23. Kd2 {[%emt 0:03:09]} Rd8 {[%emt 0:01:49]} 24. Kc3 {[%emt 0:01:20]} Qxh3 {[%emt 0:05:03]} 25. Qb2 {[%emt 0:02:05]} Bf3 {[%emt 0:01:53]} 26. Qb5 {[%emt 0:04:36]} Bc6 {[%emt 0:00:59]} 27. Qb3 {[%emt 0:01:43]} Bf3 {[%emt 0:01:01]} 28. Bxf7 {[%emt 0:00:56]} Kb8 {[%emt 0:01:07]} 29. Be6 {[%emt 0:02:12]} Qh5 {[%emt 0:01:22]} 30. Rfd1 {[%emt 0:00:57]} Qe5+ {[%emt 0:03:10]} 31. d4 {[%emt 0:01:18]} Ne4+ {[%emt 0:01:00]} 32. Kb2 {[%emt 0:00:45]} Qd6 {[%emt 0:02:29]} 33. Ka1 {[%emt 0:00:51]} Nf6 {[%emt 0:02:35]} 34. d5 {[%emt 0:00:14]} Qa6 {[%emt 0:01:27]} 35. Rdc1 {[%emt 0:00:29]} h6 {[%emt 0:01:07]} 36. Rb2 {[%emt 0:00:04]} Nxd5 {[%emt 0:00:39]} 37. Bxd5 {[%emt 0:00:47]} Bxd5 {[%emt 0:00:12]} 38. Qa3 {[%emt 0:00:19]} h5 {[%emt 0:00:54]} 39. Rd1 {[%emt 0:00:18]} 1-0

[Event "DVM U10 2024"]
[Site "Duesseldorf"]
[Date "2024.12.28"]
[Round "4"]
[White "Oezkurt, Alper"]
[Black "Stopp, Bruno"]
[Result "1-0"]
[ECO "C51"]
[WhiteElo "1533"]
[BlackElo "1519"]
[Annotator "NA"]
[PlyCount "74"]
[EventDate "2024.12.23"]
[EventType "team-tourn"]
[EventRounds "7"]
[EventCountry "GER"]
[SourceTitle "playchess.com"]
[Source "ChessBase"]
[SourceQuality "1"]
[TimeControl "3300+5"]

1. e4 {[%emt 0:00:04]} e5 {[%emt 0:00:03]} 2. Nf3 {[%emt 0:00:08]} Nc6 {[%emt 0:00:04]} 3. Bc4 {[%emt 0:00:07]} Bc5 {[%emt 0:00:03]} 4. b4 {[%emt 0:00:02]} Bxb4 {[%emt 0:00:47]} 5. c3 {[%emt 0:00:08]} Bc5 {[%emt 0:02:53]} 6. d4 {[%emt 0:00:24]} exd4 {[%emt 0:00:10]} 7. O-O {[%emt 0:00:03]} Nf6 {[%emt 0:00:36]} 8. cxd4 {[%emt 0:00:09]} Bb6 {[%emt 0:00:23]} 9. Bg5 {[%emt 0:00:12]} h6 {[%emt 0:00:23]} 10. Bh4 {[%emt 0:00:11]} g5 {[%emt 0:00:38]} 11. Bg3 {[%emt 0:00:09]} Nxe4 {[%emt 0:00:35]} 12. Re1 {[%emt 0:00:10]} d5 {[%emt 0:01:18]} 13. Bd3 {[%emt 0:00:04]} Bf5 {[%emt 0:03:26]} 14. Nc3 {[%emt 0:01:41]} Ba5 {[%emt 0:04:35]} 15. Qc2 {[%emt 0:00:23]} Bxc3 {[%emt 0:02:29]} 16. Qxc3 {[%emt 0:00:06]} Qd7 {[%emt 0:01:01]} 17. Bxe4 {[%emt 0:00:23]} dxe4 {[%emt 0:02:42]} 18. d5 {[%emt 0:00:11]} O-O-O {[%emt 0:03:02]} 19. dxc6 {[%emt 0:00:09]} Qxc6 {[%emt 0:01:35]} 20. Qxc6 {[%emt 0:00:11]} bxc6 {[%emt 0:00:05]} 21. Ne5 {[%emt 0:00:01]} Rd5 {[%emt 0:11:53]} 22. Nxf7 {[%emt 0:01:02]} Rh7 {[%emt 0:05:33]} 23. Ne5 {[%emt 0:00:16]} c5 {[%emt 0:01:54]} 24. Rad1 {[%emt 0:00:30]} Rd4 {[%emt 0:01:08]} 25. f3 {[%emt 0:09:03]} e3 {[%emt 0:02:36]} 26. Rc1 {[%emt 0:01:11]} Rd2 {[%emt 0:03:21]} 27. Rxe3 {[%emt 0:01:14]} Rxa2 {[%emt 0:00:13]} 28. Rxc5 {[%emt 0:00:09]} Re7 {[%emt 0:00:43]} 29. Rec3 {[%emt 0:01:23]} Ra1+ {[%emt 0:01:00]} 30. Rc1 {[%emt 0:00:16]} Ra2 {[%emt 0:00:26]} 31. Nc6 {[%emt 0:02:07]} Ree2 {[%emt 0:00:39]} 32. Ne5 {[%emt 0:01:24]} Rxg2+ {[%emt 0:00:50]} 33. Kh1 {[%emt 0:00:06]} Rgc2 {[%emt 0:00:20]} 34. R5xc2 Rxc2 35. Rxc2 {[%emt 0:04:51]} Bxc2 {[%emt 0:00:04]} 36. Nf7 {[%emt 0:00:08]} a5 {[%emt 0:00:02]} 37. Be5 {[%emt 0:00:07]} a4 {[%emt 0:00:21]} 1-0